[Event "FIDE Women World Blitz 2021"]
[Site "Warsaw"]
[Date "2021.12.30"]
[Round "12.16"]
[White "Majdan, Joanna"]
[Black "Atalik, Ekaterina"]
[Result "0-1"]
[ECO "B19"]
[WhiteElo "2325"]
[BlackElo "2430"]
[Annotator "NA"]
[PlyCount "128"]
[EventDate "2021.12.29"]
[EventType "swiss"]
[EventCountry "POL"]
[Tiebreak "Cut1 Buchholz"]
[SourceTitle "playchess.com"]
[Source "ChessBase"]
[SourceQuality "1"]
[TimeControl "180+2"]

1. e4 {[%emt 0:00:01]} c6 {[%emt 0:00:01]} 2. d4 {[%emt 0:00:01]} d5 {[%emt 0:
00:01]} 3. Nc3 {[%emt 0:00:01]} dxe4 {[%emt 0:00:01]} 4. Nxe4 {[%emt 0:00:00]}
Bf5 {[%emt 0:00:02]} 5. Ng3 {[%emt 0:00:01]} Bg6 {[%emt 0:00:02]} 6. h4 {
[%emt 0:00:04]} h6 {[%emt 0:00:01]} 7. Nf3 {[%emt 0:00:03]} e6 {[%emt 0:00:02]}
8. Ne5 {[%emt 0:00:19]} Bh7 {[%emt 0:00:02]} 9. Qf3 {[%emt 0:00:02]} Nf6 {
[%emt 0:00:05]} 10. c3 {[%emt 0:00:02]} Be7 {[%emt 0:00:08]} 11. Nh5 {[%emt 0:
00:07]} O-O {[%emt 0:00:12]} 12. Nxf6+ {[%emt 0:00:20]} Bxf6 {[%emt 0:00:02]}
13. Qg3 {[%emt 0:00:09]} Kh8 {[%emt 0:00:07]} 14. Ng4 {[%emt 0:00:02]} Nd7 {
[%emt 0:00:07]} 15. Nxf6 {[%emt 0:00:17]} Nxf6 {[%emt 0:00:02]} 16. Be2 {
[%emt 0:00:14]} Qb6 {[%emt 0:00:07]} 17. O-O {[%emt 0:00:04]} Rad8 {[%emt 0:00:
04]} 18. h5 {[%emt 0:00:04]} Qa5 {[%emt 0:00:05]} 19. Qh4 {[%emt 0:00:03]} Qf5
{[%emt 0:00:15]} 20. Re1 {[%emt 0:00:14]} Qe4 {[%emt 0:00:09]} 21. Qxe4 {
[%emt 0:00:08]} Bxe4 {[%emt 0:00:02]} 22. f3 {[%emt 0:00:03]} Bh7 {[%emt 0:00:
05]} 23. g4 {[%emt 0:00:01]} Nd5 {[%emt 0:00:04]} 24. Bd2 {[%emt 0:00:07]} Rfe8
{[%emt 0:00:08]} 25. c4 {[%emt 0:00:01]} Nb6 {[%emt 0:00:02]} 26. Bc3 {[%emt 0:
00:02]} Na4 {[%emt 0:00:01]} 27. Bf1 {[%emt 0:00:12]} Nxc3 {[%emt 0:00:04]} 28.
bxc3 {[%emt 0:00:01]} f6 {[%emt 0:00:13]} 29. f4 {[%emt 0:00:02]} Bg8 {[%emt 0:
00:11]} 30. Kf2 {[%emt 0:00:02]} c5 {[%emt 0:00:02]} 31. Rad1 {[%emt 0:00:03]}
Rc8 {[%emt 0:00:04]} 32. d5 {[%emt 0:00:04]} exd5 {[%emt 0:00:04]} 33. Rxe8 {
[%emt 0:00:01]} Rxe8 {[%emt 0:00:03]} 34. cxd5 {[%emt 0:00:01]} Rd8 {[%emt 0:
00:02]} 35. Bg2 {[%emt 0:00:03]} b6 {[%emt 0:00:04]} 36. f5 {[%emt 0:00:03]}
Bf7 {[%emt 0:00:02]} 37. c4 {[%emt 0:00:03]} Kg8 {[%emt 0:00:02]} 38. Re1 {
[%emt 0:00:03]} Kf8 {[%emt 0:00:01]} 39. Re2 {[%emt 0:00:04]} Re8 {[%emt 0:00:
01]} 40. Rxe8+ Kxe8 {[%emt 0:00:01]} 41. Ke3 {[%emt 0:00:06]} Kd7 {[%emt 0:00:
00]} 42. Ke4 {[%emt 0:00:06]} Kd6 {[%emt 0:00:01]} 43. Bf1 {[%emt 0:00:12]} Be8
{[%emt 0:00:02]} 44. Be2 {[%emt 0:00:03]} Ba4 {[%emt 0:00:01]} 45. Kf4 {
[%emt 0:00:05]} Bc2 {[%emt 0:00:04]} 46. a3 {[%emt 0:00:05]} a6 {[%emt 0:00:07]
} 47. Bf1 {[%emt 0:00:06]} Ba4 {[%emt 0:00:03]} 48. Ke4 {[%emt 0:00:03]} b5 {
[%emt 0:00:01]} 49. Bd3 {[%emt 0:00:07]} bxc4 {[%emt 0:00:10]} 50. Bxc4 {
[%emt 0:00:01]} Bb5 {[%emt 0:00:11]} 51. Kd3 {[%emt 0:00:01]} Ke5 {[%emt 0:00:
03]} 52. Kc3 {[%emt 0:00:04]} Bxc4 {[%emt 0:00:09]} 53. Kxc4 {[%emt 0:00:03]}
Kd6 {[%emt 0:00:01]} 54. a4 {[%emt 0:00:03]} a5 {[%emt 0:00:01]} 55. Kb5 {
[%emt 0:00:01]} Kxd5 {[%emt 0:00:01]} 56. Kxa5 {[%emt 0:00:00]} c4 {[%emt 0:00:
01]} 57. Kb6 {[%emt 0:00:03]} c3 58. a5 c2 {[%emt 0:00:02]} 59. a6 {[%emt 0:00:
01]} c1=Q {[%emt 0:00:03]} 60. a7 {[%emt 0:00:01]} Qb2+ {[%emt 0:00:02]} 61.
Kc7 {[%emt 0:00:01]} Qa3 {[%emt 0:00:02]} 62. Kb8 {[%emt 0:00:02]} Ke5 {
[%emt 0:00:02]} 63. a8=Q {[%emt 0:00:03]} Qxa8+ {[%emt 0:00:01]} 64. Kxa8 {
[%emt 0:00:01]} Kf4 {[%emt 0:00:01]} 0-1

[Event "FIDE Women World Blitz 2021"]
[Site "Warsaw"]
[Date "2021.12.30"]
[Round "12.17"]
[White "Kamalidenova, Meruert"]
[Black "Kulon, Klaudia"]
[Result "0-1"]
[ECO "C76"]
[WhiteElo "2339"]
[BlackElo "2328"]
[Annotator "NA"]
[PlyCount "116"]
[EventDate "2021.12.29"]
[EventType "swiss"]
[EventCountry "POL"]
[Tiebreak "Cut1 Buchholz"]
[SourceTitle "playchess.com"]
[Source "ChessBase"]
[SourceQuality "1"]
[TimeControl "180+2"]

1. e4 {[%emt 0:00:01]} e5 {[%emt 0:00:00]} 2. Nf3 {[%emt 0:00:01]} Nc6 {
[%emt 0:00:01]} 3. Bb5 {[%emt 0:00:02]} a6 {[%emt 0:00:01]} 4. Ba4 {[%emt 0:00:
01]} d6 {[%emt 0:00:01]} 5. c3 {[%emt 0:00:02]} Bd7 {[%emt 0:00:01]} 6. O-O {
[%emt 0:00:02]} g6 {[%emt 0:00:01]} 7. d4 {[%emt 0:00:03]} Bg7 {[%emt 0:00:00]}
8. Re1 {[%emt 0:00:07]} Nge7 {[%emt 0:00:02]} 9. Be3 {[%emt 0:00:05]} O-O {
[%emt 0:00:08]} 10. Nbd2 {[%emt 0:00:01]} h6 {[%emt 0:00:02]} 11. Nf1 {[%emt 0:
00:04]} b5 {[%emt 0:00:02]} 12. Bc2 {[%emt 0:00:02]} Bg4 {[%emt 0:00:09]} 13.
d5 {[%emt 0:00:11]} Na5 {[%emt 0:00:05]} 14. h3 {[%emt 0:00:10]} Bd7 {[%emt 0:
00:01]} 15. N3h2 {[%emt 0:00:26]} f5 {[%emt 0:00:06]} 16. f4 {[%emt 0:00:03]}
Nc4 {[%emt 0:00:04]} 17. Bc1 {[%emt 0:00:03]} exf4 {[%emt 0:00:12]} 18. Rb1 {
[%emt 0:00:08]} fxe4 {[%emt 0:00:02]} 19. Bxe4 {[%emt 0:00:02]} Ne5 {[%emt 0:
00:17]} 20. Nf3 {[%emt 0:00:05]} Bf5 {[%emt 0:00:03]} 21. Nd4 {[%emt 0:00:10]}
Qd7 {[%emt 0:00:36]} 22. Bxf5 {[%emt 0:00:13]} Nxf5 {[%emt 0:00:03]} 23. Ne6 {
[%emt 0:00:04]} Rf7 {[%emt 0:00:04]} 24. Bxf4 {[%emt 0:00:03]} g5 {[%emt 0:00:
16]} 25. Nxg7 {[%emt 0:00:10]} gxf4 {[%emt 0:00:05]} 26. Ne6 {[%emt 0:00:06]}
f3 {[%emt 0:00:04]} 27. Rxe5 {[%emt 0:00:24]} f2+ {[%emt 0:00:01]} 28. Kxf2 {
[%emt 0:00:13]} dxe5 {[%emt 0:00:01]} 29. Kg1 {[%emt 0:00:02]} c6 {[%emt 0:00:
01]} 30. Qg4+ {[%emt 0:00:11]} Kh8 {[%emt 0:00:12]} 31. Qe4 {[%emt 0:00:02]}
Qxd5 {[%emt 0:00:05]} 32. Qxd5 {[%emt 0:00:08]} cxd5 {[%emt 0:00:01]} 33. Rd1 {
[%emt 0:00:02]} Re8 {[%emt 0:00:05]} 34. Nc5 {[%emt 0:00:05]} e4 {[%emt 0:00:
09]} 35. Re1 {[%emt 0:00:11]} a5 {[%emt 0:00:04]} 36. Nb3 {[%emt 0:00:11]} a4 {
[%emt 0:00:01]} 37. Nd4 {[%emt 0:00:03]} Nxd4 {[%emt 0:00:02]} 38. cxd4 {
[%emt 0:00:01]} Rc8 {[%emt 0:00:12]} 39. Ne3 {[%emt 0:00:02]} Rd7 {[%emt 0:00:
01]} 40. Rf1 {[%emt 0:00:01]} b4 {[%emt 0:00:04]} 41. Rf5 {[%emt 0:00:08]} Rc1+
{[%emt 0:00:01]} 42. Kh2 {[%emt 0:00:01]} Rb1 {[%emt 0:00:01]} 43. Nxd5 {
[%emt 0:00:05]} Rxb2 {[%emt 0:00:01]} 44. Re5 {[%emt 0:00:07]} a3 {[%emt 0:00:
07]} 45. Nf6 {[%emt 0:00:01]} Rf7 {[%emt 0:00:08]} 46. Nxe4 {[%emt 0:00:05]}
Rxa2 {[%emt 0:00:02]} 47. Ra5 {[%emt 0:00:03]} Rf4 {[%emt 0:00:10]} 48. Nc5 {
[%emt 0:00:04]} Rxd4 {[%emt 0:00:05]} 49. Ra7 {[%emt 0:00:01]} Rc2 {[%emt 0:00:
10]} 50. Nb3 {[%emt 0:00:02]} Rd3 {[%emt 0:00:02]} 51. Na5 {[%emt 0:00:02]} a2
{[%emt 0:00:03]} 52. Nb7 {[%emt 0:00:01]} Ra3 {[%emt 0:00:02]} 53. Na5 {
[%emt 0:00:02]} a1=Q {[%emt 0:00:04]} 54. Ra8+ {[%emt 0:00:01]} Kg7 {[%emt 0:
00:00]} 55. Ra7+ {[%emt 0:00:01]} Kf6 {[%emt 0:00:01]} 56. Ra6+ {[%emt 0:00:01]
} Kf5 {[%emt 0:00:04]} 57. h4 {[%emt 0:00:05]} Rxa5 {[%emt 0:00:01]} 58. Rxh6 {
[%emt 0:00:02]} Qe5+ {[%emt 0:00:02]} 0-1

[Event "FIDE Women World Blitz 2021"]
[Site "Warsaw"]
[Date "2021.12.30"]
[Round "12.18"]
[White "Mamedjarova, Zeinab"]
[Black "Hryzlova, Sofiia"]
[Result "1-0"]
[ECO "D05"]
[WhiteElo "2249"]
[BlackElo "2097"]
[Annotator "NA"]
[PlyCount "111"]
[EventDate "2021.12.29"]
[EventType "swiss"]
[EventCountry "POL"]
[Tiebreak "Cut1 Buchholz"]
[SourceTitle "playchess.com"]
[Source "ChessBase"]
[SourceQuality "1"]
[TimeControl "180+2"]

1. d4 {[%emt 0:00:01]} Nf6 {[%emt 0:00:02]} 2. Nf3 {[%emt 0:00:01]} e6 {
[%emt 0:00:01]} 3. e3 {[%emt 0:00:01]} d5 {[%emt 0:00:02]} 4. Bd3 {[%emt 0:00:
01]} Bd6 {[%emt 0:00:04]} 5. Nbd2 {[%emt 0:00:01]} O-O {[%emt 0:00:03]} 6. O-O
{[%emt 0:00:02]} b6 {[%emt 0:00:02]} 7. a4 {[%emt 0:00:03]} a6 {[%emt 0:00:06]}
8. b3 {[%emt 0:00:02]} Bb7 {[%emt 0:00:02]} 9. Bb2 {[%emt 0:00:01]} Nbd7 {
[%emt 0:00:03]} 10. Ne5 {[%emt 0:00:01]} c5 {[%emt 0:00:11]} 11. Nxd7 {[%emt 0:
00:12]} Qxd7 {[%emt 0:00:04]} 12. dxc5 {[%emt 0:00:01]} bxc5 {[%emt 0:00:11]}
13. Bxf6 {[%emt 0:00:02]} gxf6 {[%emt 0:00:01]} 14. Qg4+ {[%emt 0:00:31]} Kh8 {
[%emt 0:00:02]} 15. Qh4 {[%emt 0:00:07]} f5 {[%emt 0:00:06]} 16. Nf3 {[%emt 0:
00:25]} f6 {[%emt 0:00:16]} 17. a5 {[%emt 0:00:01]} Rac8 {[%emt 0:00:06]} 18.
Rfd1 {[%emt 0:00:07]} Qg7 {[%emt 0:00:02]} 19. Be2 {[%emt 0:00:18]} Rg8 {
[%emt 0:00:15]} 20. g3 {[%emt 0:00:02]} Be5 {[%emt 0:00:09]} 21. Ra4 {[%emt 0:
00:08]} Bc6 {[%emt 0:00:14]} 22. Ra2 {[%emt 0:00:16]} Ra8 {[%emt 0:00:09]} 23.
Qh5 {[%emt 0:00:11]} Be8 {[%emt 0:00:06]} 24. Qh3 {[%emt 0:00:01]} Bc3 {
[%emt 0:00:08]} 25. Rd3 {[%emt 0:00:04]} Be5 {[%emt 0:00:05]} 26. c4 {[%emt 0:
00:03]} dxc4 {[%emt 0:00:09]} 27. bxc4 {[%emt 0:00:02]} Bc6 {[%emt 0:00:02]}
28. Rd1 {[%emt 0:00:14]} Rab8 {[%emt 0:00:08]} 29. Nh4 {[%emt 0:00:23]} Rb4 {
[%emt 0:00:15]} 30. Rad2 {[%emt 0:00:05]} Bc7 {[%emt 0:00:08]} 31. Bh5 {
[%emt 0:00:01]} Rgb8 {[%emt 0:00:16]} 32. Bf3 {[%emt 0:00:13]} Bxf3 {[%emt 0:
00:06]} 33. Nxf3 {[%emt 0:00:01]} Rb1 {[%emt 0:00:04]} 34. Qf1 {[%emt 0:00:02]}
Rxd1 {[%emt 0:00:08]} 35. Qxd1 {[%emt 0:00:01]} Bxa5 {[%emt 0:00:06]} 36. Rd7 {
[%emt 0:00:01]} Qf8 {[%emt 0:00:01]} 37. Nh4 {[%emt 0:00:09]} Rd8 {[%emt 0:00:
03]} 38. Kg2 {[%emt 0:00:05]} Qe8 {[%emt 0:00:05]} 39. Rd6 {[%emt 0:00:03]} Bc7
{[%emt 0:00:03]} 40. Rd2 {[%emt 0:00:03]} Qc6+ {[%emt 0:00:02]} 41. Kg1 {
[%emt 0:00:02]} Rxd2 {[%emt 0:00:03]} 42. Qxd2 {[%emt 0:00:01]} Qd6 {[%emt 0:
00:01]} 43. Qb2 {[%emt 0:00:03]} Kg7 {[%emt 0:00:06]} 44. Qb7 {[%emt 0:00:02]}
a5 {[%emt 0:00:06]} 45. Kg2 {[%emt 0:00:06]} Qb6 {[%emt 0:00:00]} 46. Qc8 {
[%emt 0:00:03]} a4 {[%emt 0:00:02]} 47. Qd7+ {[%emt 0:00:01]} Kh6 {[%emt 0:00:
02]} 48. Qxa4 {[%emt 0:00:01]} Qb7+ {[%emt 0:00:03]} 49. Kh3 {[%emt 0:00:08]}
Qe4 {[%emt 0:00:05]} 50. Qe8 {[%emt 0:00:02]} Be5 {[%emt 0:00:03]} 51. Qf8+ {
[%emt 0:00:03]} Kh5 {[%emt 0:00:02]} 52. Qf7+ {[%emt 0:00:02]} Kh6 {[%emt 0:00:
00]} 53. f3 {[%emt 0:00:01]} Qxe3 {[%emt 0:00:02]} 54. Qxe6 {[%emt 0:00:01]}
Qd4 {[%emt 0:00:02]} 55. Nxf5+ {[%emt 0:00:02]} Kg6 {[%emt 0:00:01]} 56. Nxd4 {
[%emt 0:00:01]} 1-0

[Event "FIDE Women World Blitz 2021"]
[Site "Warsaw"]
[Date "2021.12.30"]
[Round "12.19"]
[White "Dzagnidze, Nana"]
[Black "Bulmaga, Irina"]
[Result "1-0"]
[ECO "E54"]
[WhiteElo "2524"]
[BlackElo "2405"]
[Annotator "ChessBase"]
[PlyCount "103"]
[EventDate "2021.12.29"]
[EventType "swiss"]
[EventCountry "POL"]
[Tiebreak "Cut1 Buchholz"]
[SourceTitle "playchess.com"]
[Source "ChessBase"]
[SourceQuality "1"]
[TimeControl "180+2"]

1. d4 {[%emt 0:00:01]} Nf6 {[%emt 0:00:02]} 2. c4 {[%emt 0:00:01]} e6 {[%emt 0:
00:01]} 3. Nc3 {[%emt 0:00:01]} Bb4 {[%emt 0:00:02]} 4. e3 {[%emt 0:00:01]} O-O
{[%emt 0:00:03]} 5. Bd3 {[%emt 0:00:01]} d5 {[%emt 0:00:02]} 6. Nf3 {[%emt 0:
00:01]} c5 {[%emt 0:00:07]} 7. a3 {[%emt 0:00:01]} Bxc3+ {[%emt 0:00:02]} 8.
bxc3 {[%emt 0:00:01]} dxc4 {[%emt 0:00:02]} 9. Bxc4 {[%emt 0:00:01]} Qc7 {
[%emt 0:00:06]} 10. Ba2 {[%emt 0:00:03]} b6 {[%emt 0:00:04]} 11. O-O {[%emt 0:
00:01]} Bb7 {[%emt 0:00:01]} 12. h3 {[%emt 0:00:45]} Nbd7 {[%emt 0:00:02]} 13.
a4 {[%emt 0:00:07]} e5 {[%emt 0:00:07]} 14. Ba3 {[%emt 0:00:32]} Rfe8 {[%emt 0:
00:02]} 15. Ng5 {[%emt 0:00:39]} c4 {[%emt 0:00:34]} 16. Qe2 {[%emt 0:00:14]}
Rac8 {[%emt 0:00:10]} 17. Nf3 {[%emt 0:00:11]} Nd5 {[%emt 0:00:13]} 18. Rfc1 {
[%emt 0:00:04]} Qc6 {[%emt 0:00:06]} 19. a5 {[%emt 0:00:10]} b5 {[%emt 0:00:04]
} 20. Rab1 {[%emt 0:00:04]} a6 {[%emt 0:00:01]} 21. Rb2 {[%emt 0:00:04]} Ba8 {
[%emt 0:00:10]} 22. Bb1 {[%emt 0:00:01]} e4 {[%emt 0:00:19]} 23. Nd2 {[%emt 0:
00:04]} N7f6 {[%emt 0:00:04]} 24. Nf1 {[%emt 0:00:02]} Qe6 {[%emt 0:00:05]} 25.
Ng3 {[%emt 0:00:02]} h5 {[%emt 0:00:03]} 26. Nxh5 {[%emt 0:00:02]} Nxh5 {
[%emt 0:00:06]} 27. Qxh5 {[%emt 0:00:01]} g6 {[%emt 0:00:07]} 28. Qg5 {[%emt 0:
00:05]} Kg7 {[%emt 0:00:08]} 29. Bc5 {[%emt 0:00:15]} Rh8 {[%emt 0:00:04]} 30.
Re2 {[%emt 0:00:08]} Rh5 {[%emt 0:00:05]} 31. Qg3 {[%emt 0:00:01]} Rd8 {
[%emt 0:00:19]} 32. Ree1 {[%emt 0:00:09]} Ne7 {[%emt 0:00:02]} 33. f3 {[%emt 0:
00:02]} Nf5 {[%emt 0:00:04]} 34. Qf2 {[%emt 0:00:01]} exf3 {[%emt 0:00:06]} 35.
e4 Nh4 {[%emt 0:00:07]} 36. d5 {[%emt 0:00:01]} Qd7 {[%emt 0:00:14]} 37. Bd4+ {
[%emt 0:00:02]} Kg8 {[%emt 0:00:03]} 38. g4 {[%emt 0:00:02]} Rh7 {[%emt 0:00:
03]} 39. Bf6 {[%emt 0:00:01]} Ng2 {[%emt 0:00:02]} 40. Bxd8 {[%emt 0:00:04]}
Nxe1 {[%emt 0:00:02]} 41. Rxe1 {[%emt 0:00:03]} Qxd8 {[%emt 0:00:03]} 42. Qxf3
{[%emt 0:00:01]} Qh4 {[%emt 0:00:02]} 43. Rd1 {[%emt 0:00:03]} Bb7 {[%emt 0:00:
08]} 44. Kg2 {[%emt 0:00:02]} Bc8 {[%emt 0:00:01]} 45. e5 {[%emt 0:00:02]} Qg5
{[%emt 0:00:04]} 46. e6 {[%emt 0:00:06]} fxe6 {[%emt 0:00:02]} 47. Rf1 {
[%emt 0:00:00]} Qe7 {[%emt 0:00:07]} 48. Bxg6 {[%emt 0:00:02]} Rg7 {[%emt 0:00:
01]} 49. Be4 {[%emt 0:00:01]} Bd7 {[%emt 0:00:04]} 50. dxe6 {[%emt 0:00:03]}
Bxe6 {[%emt 0:00:01]} 51. Qf4 {[%emt 0:00:04]} Qd8 {[%emt 0:00:05]} 52. Rf2 1-0

[Event "FIDE Women World Blitz 2021"]
[Site "Warsaw"]
[Date "2021.12.30"]
[Round "12.20"]
[White "Muetsch, Annmarie"]
[Black "Zhukova, Natalia"]
[Result "1-0"]
[ECO "C55"]
[WhiteElo "2279"]
[BlackElo "2331"]
[Annotator "NA"]
[PlyCount "96"]
[EventDate "2021.12.29"]
[EventType "swiss"]
[EventCountry "POL"]
[Tiebreak "Cut1 Buchholz"]
[SourceTitle "playchess.com"]
[Source "ChessBase"]
[SourceQuality "1"]
[TimeControl "180+2"]

1. e4 {[%emt 0:00:01]} e5 {[%emt 0:00:02]} 2. Bc4 {[%emt 0:00:03]} Nf6 {
[%emt 0:00:05]} 3. d3 {[%emt 0:00:02]} Nc6 {[%emt 0:00:01]} 4. Nf3 {[%emt 0:00:
05]} h6 {[%emt 0:00:06]} 5. c3 {[%emt 0:00:02]} d6 {[%emt 0:00:02]} 6. Bb3 {
[%emt 0:00:03]} g6 {[%emt 0:00:02]} 7. O-O {[%emt 0:00:06]} Bg7 {[%emt 0:00:00]
} 8. h3 {[%emt 0:00:10]} O-O {[%emt 0:00:02]} 9. Be3 {[%emt 0:00:16]} Kh7 {
[%emt 0:00:20]} 10. Bc2 {[%emt 0:00:00]} d5 {[%emt 0:00:07]} 11. exd5 {[%emt 0:
00:00]} Nxd5 {[%emt 0:00:01]} 12. Bd2 {[%emt 0:00:13]} a6 {[%emt 0:00:23]} 13.
a4 {[%emt 0:00:04]} Rb8 {[%emt 0:00:08]} 14. Re1 {[%emt 0:00:07]} b5 {[%emt 0:
00:14]} 15. axb5 {[%emt 0:00:01]} axb5 {[%emt 0:00:00]} 16. Qe2 {[%emt 0:00:11]
} f5 {[%emt 0:00:26]} 17. Na3 {[%emt 0:00:28]} Qd6 {[%emt 0:00:25]} 18. Rad1 {
[%emt 0:00:00]} Ba6 {[%emt 0:00:10]} 19. b4 {[%emt 0:00:00]} Qd7 {[%emt 0:00:
03]} 20. Bb3 {[%emt 0:00:00]} Rfe8 {[%emt 0:00:02]} 21. Bc2 {[%emt 0:00:20]}
Re7 {[%emt 0:00:07]} 22. h4 {[%emt 0:00:05]} Nf6 {[%emt 0:00:05]} 23. Bc1 {
[%emt 0:00:09]} Rbe8 {[%emt 0:00:03]} 24. Qf1 {[%emt 0:00:07]} Qc8 {[%emt 0:00:
06]} 25. Be3 {[%emt 0:00:06]} Ng4 {[%emt 0:00:10]} 26. Bc5 {[%emt 0:00:02]} Rf7
{[%emt 0:00:03]} 27. h5 {[%emt 0:00:04]} gxh5 {[%emt 0:00:03]} 28. d4 {[%emt 0:
00:08]} e4 {[%emt 0:00:02]} 29. Nd2 {[%emt 0:00:08]} Qd8 {[%emt 0:00:02]} 30.
f3 {[%emt 0:00:11]} Qh4 {[%emt 0:00:19]} 31. fxg4 {[%emt 0:00:04]} hxg4 {
[%emt 0:00:01]} 32. Qf4 {[%emt 0:00:07]} Ne7 {[%emt 0:00:08]} 33. Bxe7 {
[%emt 0:00:04]} Rexe7 {[%emt 0:00:02]} 34. g3 {[%emt 0:00:05]} Qh3 {[%emt 0:00:
01]} 35. Re2 {[%emt 0:00:03]} Qh5 {[%emt 0:00:02]} 36. Rh2 {[%emt 0:00:04]} Qg6
{[%emt 0:00:00]} 37. Bb3 {[%emt 0:00:10]} Rf8 {[%emt 0:00:01]} 38. Nc2 {
[%emt 0:00:02]} Bf6 {[%emt 0:00:02]} 39. Ne3 {[%emt 0:00:10]} Bg5 {[%emt 0:00:
01]} 40. Qf2 {[%emt 0:00:01]} f4 {[%emt 0:00:01]} 41. gxf4 Bxf4 42. Rg2 {
[%emt 0:00:15]} g3 {[%emt 0:00:03]} 43. Qe2 {[%emt 0:00:05]} Bc8 {[%emt 0:00:
05]} 44. Bc2 {[%emt 0:00:02]} Bh3 {[%emt 0:00:03]} 45. Nef1 Bxg2 {[%emt 0:00:
02]} 46. Qxg2 {[%emt 0:00:03]} Rfe8 {[%emt 0:00:06]} 47. Re1 {[%emt 0:00:09]}
Kh8 {[%emt 0:00:02]} 48. Re2 {[%emt 0:00:00]} Qc6 {[%emt 0:00:13]} 1-0

[Event "FIDE Women World Blitz 2021"]
[Site "Warsaw"]
[Date "2021.12.30"]
[Round "12.21"]
[White "Nomin-Erdene, Davaademberel"]
[Black "Mammadova, Gulnar"]
[Result "1-0"]
[ECO "C17"]
[WhiteElo "2188"]
[BlackElo "2395"]
[Annotator "NA"]
[PlyCount "91"]
[EventDate "2021.12.29"]
[EventType "swiss"]
[EventCountry "POL"]
[Tiebreak "Cut1 Buchholz"]
[SourceTitle "playchess.com"]
[Source "ChessBase"]
[SourceQuality "1"]
[TimeControl "180+2"]

1. e4 {[%emt 0:00:00]} e6 {[%emt 0:00:02]} 2. d4 {[%emt 0:00:02]} d5 {[%emt 0:
00:01]} 3. Nc3 {[%emt 0:00:00]} Bb4 {[%emt 0:00:01]} 4. e5 {[%emt 0:00:02]} c5
{[%emt 0:00:00]} 5. Bd2 {[%emt 0:00:00]} Ne7 {[%emt 0:00:02]} 6. a3 {[%emt 0:
00:01]} Bxc3 {[%emt 0:00:07]} 7. Bxc3 {[%emt 0:00:01]} cxd4 {[%emt 0:00:03]} 8.
Qxd4 {[%emt 0:00:01]} Nbc6 {[%emt 0:00:04]} 9. Qg4 {[%emt 0:00:03]} Nf5 {
[%emt 0:00:06]} 10. Nf3 {[%emt 0:00:06]} h5 {[%emt 0:00:21]} 11. Qf4 {[%emt 0:
00:00]} Bd7 {[%emt 0:00:33]} 12. Bd3 {[%emt 0:00:01]} g6 {[%emt 0:00:01]} 13.
h3 {[%emt 0:00:39]} Qb6 {[%emt 0:00:12]} 14. Ng5 {[%emt 0:00:11]} Nce7 {
[%emt 0:00:20]} 15. O-O-O {[%emt 0:00:08]} d4 {[%emt 0:00:07]} 16. Bd2 {
[%emt 0:00:27]} Nd5 {[%emt 0:00:06]} 17. Qf3 {[%emt 0:00:01]} Bc6 {[%emt 0:00:
05]} 18. g4 {[%emt 0:00:06]} Nc3 {[%emt 0:00:13]} 19. Qf4 {[%emt 0:00:30]} Nd5
{[%emt 0:00:01]} 20. Qf3 {[%emt 0:00:04]} Nc3 {[%emt 0:00:02]} 21. Be4 {
[%emt 0:00:11]} Nxe4 22. Nxe4 {[%emt 0:00:01]} O-O-O {[%emt 0:00:26]} 23. Qf4 {
[%emt 0:00:34]} Nh6 {[%emt 0:00:13]} 24. Nd6+ {[%emt 0:00:02]} Kb8 {[%emt 0:00:
00]} 25. Rhg1 {[%emt 0:00:03]} Ba4 {[%emt 0:00:12]} 26. Nc4 {[%emt 0:00:14]}
Qc5 {[%emt 0:00:01]} 27. b3 {[%emt 0:00:17]} Bxb3 {[%emt 0:00:03]} 28. cxb3 {
[%emt 0:00:01]} b5 {[%emt 0:00:01]} 29. Bb4 {[%emt 0:00:01]} Qc6 {[%emt 0:00:
00]} 30. Bd6+ {[%emt 0:00:01]} Ka8 {[%emt 0:00:02]} 31. Rd2 {[%emt 0:00:07]}
bxc4 {[%emt 0:00:02]} 32. Rc2 {[%emt 0:00:00]} c3 {[%emt 0:00:19]} 33. Qxd4 {
[%emt 0:00:01]} Rc8 {[%emt 0:00:01]} 34. Rg3 {[%emt 0:00:01]} hxg4 {[%emt 0:00:
01]} 35. Rgxc3 {[%emt 0:00:06]} Qb7 {[%emt 0:00:01]} 36. hxg4 {[%emt 0:00:02]}
Rxc3 {[%emt 0:00:08]} 37. Rxc3 {[%emt 0:00:01]} Rc8 {[%emt 0:00:01]} 38. Kb2 {
[%emt 0:00:01]} Rxc3 {[%emt 0:00:02]} 39. Kxc3 {[%emt 0:00:02]} Qf3+ {[%emt 0:
00:01]} 40. Kb2 {[%emt 0:00:04]} Nxg4 {[%emt 0:00:01]} 41. Qb4 {[%emt 0:00:05]}
Qxf2+ {[%emt 0:00:03]} 42. Ka1 {[%emt 0:00:02]} Qf1+ {[%emt 0:00:01]} 43. Ka2 {
[%emt 0:00:01]} Qe2+ {[%emt 0:00:01]} 44. Kb1 {[%emt 0:00:03]} Qd3+ {[%emt 0:
00:02]} 45. Kb2 {[%emt 0:00:01]} Ne3 {[%emt 0:00:03]} 46. Qb8# {[%emt 0:00:01]}
1-0

[Event "FIDE Women World Blitz 2021"]
[Site "Warsaw"]
[Date "2021.12.30"]
[Round "12.22"]
[White "Sandu, Mihaela"]
[Black "Gaponenko, Inna"]
[Result "0-1"]
[ECO "B27"]
[WhiteElo "2244"]
[BlackElo "2339"]
[Annotator "NA"]
[PlyCount "76"]
[EventDate "2021.12.29"]
[EventType "swiss"]
[EventCountry "POL"]
[Tiebreak "Cut1 Buchholz"]
[SourceTitle "playchess.com"]
[Source "ChessBase"]
[SourceQuality "1"]
[TimeControl "180+2"]

1. e4 {[%emt 0:00:01]} g6 {[%emt 0:00:01]} 2. d4 {[%emt 0:00:01]} Bg7 {[%emt 0:
00:00]} 3. Nf3 {[%emt 0:00:01]} c5 {[%emt 0:00:01]} 4. c3 {[%emt 0:00:02]} cxd4
{[%emt 0:00:03]} 5. cxd4 {[%emt 0:00:00]} d5 {[%emt 0:00:01]} 6. e5 {[%emt 0:
00:02]} Bg4 {[%emt 0:00:01]} 7. Nbd2 {[%emt 0:00:01]} Nc6 {[%emt 0:00:08]} 8.
h3 {[%emt 0:00:01]} Bd7 {[%emt 0:00:06]} 9. a3 {[%emt 0:00:08]} e6 {[%emt 0:00:
02]} 10. Bd3 {[%emt 0:00:02]} Nge7 {[%emt 0:00:02]} 11. O-O {[%emt 0:00:01]}
O-O {[%emt 0:00:01]} 12. b4 {[%emt 0:00:05]} b6 {[%emt 0:00:44]} 13. Nb3 {
[%emt 0:00:25]} a5 {[%emt 0:00:12]} 14. b5 {[%emt 0:00:01]} Na7 {[%emt 0:00:01]
} 15. a4 {[%emt 0:00:02]} Nac8 {[%emt 0:00:05]} 16. Ba3 {[%emt 0:00:08]} Re8 {
[%emt 0:00:05]} 17. Rc1 {[%emt 0:00:02]} Nf5 {[%emt 0:00:09]} 18. Qc2 {[%emt 0:
00:03]} Ra7 {[%emt 0:00:07]} 19. Rfe1 {[%emt 0:00:04]} Bh6 {[%emt 0:00:10]} 20.
Rcd1 {[%emt 0:00:05]} Rc7 {[%emt 0:00:02]} 21. Qb2 {[%emt 0:00:03]} Bf8 {
[%emt 0:00:16]} 22. Bxf8 Rxf8 {[%emt 0:00:02]} 23. Rc1 {[%emt 0:00:21]} Nce7 {
[%emt 0:00:12]} 24. g4 {[%emt 0:00:11]} Ng7 {[%emt 0:00:02]} 25. Qd2 {[%emt 0:
00:05]} Kh8 {[%emt 0:00:17]} 26. Qh6 {[%emt 0:00:02]} Ng8 {[%emt 0:00:01]} 27.
Qe3 {[%emt 0:00:06]} f5 {[%emt 0:00:41]} 28. exf6 {[%emt 0:00:03]} Nxf6 {
[%emt 0:00:01]} 29. Ne5 {[%emt 0:00:12]} Be8 {[%emt 0:00:02]} 30. Nd2 {[%emt 0:
00:09]} Rxc1 {[%emt 0:00:05]} 31. Rxc1 {[%emt 0:00:00]} Qe7 {[%emt 0:00:01]}
32. Ndf3 {[%emt 0:00:08]} Qa3 {[%emt 0:00:04]} 33. Rc7 {[%emt 0:00:06]} Qd6 {
[%emt 0:00:08]} 34. Rb7 {[%emt 0:00:04]} Ng8 {[%emt 0:00:02]} 35. Qg5 {[%emt 0:
00:13]} Qa3 {[%emt 0:00:08]} 36. Kg2 {[%emt 0:00:05]} Qxa4 {[%emt 0:00:03]} 37.
Qh4 {[%emt 0:00:05]} Qa3 {[%emt 0:00:06]} 38. Bxg6 {[%emt 0:00:06]} h6 {
[%emt 0:00:04]} 0-1